bitfinex-derivatives/quotes_SOLF0:USTF0_20250730
["timestamp","ask_amount","ask_price","bid_price","bid_amount"]
[1753905596927,5.6774,176.14,176.13,112.05]
[1753905597534,5.6774,176.14,176.13,108.88]
[1753905597734,5.6774,176.14,176.13,112.05]
[1753905597937,2.99,176.22,176.14,3.17]
[1753905598435,5.6771,176.15,176.14,3.17]
[1753905598634,3.03,176.21,176.14,108.88]
[1753905598937,5.6771,176.15,176.14,108.88]
[1753905599238,8.7071,176.15,176.14,108.88]
[1753905600245,3.03,176.15,176.08,6.63676915]
[1753905600430,3.03,176.15,176.09,108.88]
[1753905601333,5.6783,176.12,176.11,3.01]
[1753905601639,3.03,176.15,176.09,108.88]
[1753905601932,8.7088,176.1,176.09,108.88]
[1753905602132,3.03,176.13,176.09,111.89]
[1753905602334,6.63676915,176.19,176.11,3.01]
[1753905602536,3.03,176.14,176.09,108.88]
[1753905602839,8.7088,176.1,176.09,108.88]
[1753905603040,6.63676915,176.17,176.09,108.88]
[1753905603339,5.6793,176.09,176.08,108.86]
[1753905603537,3.03,176.15,176.09,3.01]
[1753905603741,3.03,176.15,176.11,3.01]
[1753905603936,3.03,176.15,176.1,6.63676915]
[1753905604235,6.63676915,176.19,176.08,115.49676915]
[1753905604432,3.03,176.13,176.04,3.01]
[1753905604634,3.03,176.13,176.06,3.01]
[1753905604831,3.03,176.13,176.07,108.86]
[1753905605235,3.03,176.16,176.07,108.86]
[1753905605439,6.63676915,176.14,176.07,108.86]
[1753905605940,5.679,176.1,176.07,111.87]
[1753905606144,5.679,176.1,176.08,111.87]
[1753905606337,3.03,176.13,176.09,3.01]
[1753905606537,3.03,176.12,176.09,3.01]
[1753905606738,3.03,176.14,176.08,118.50676915]
[1753905606941,3.03,176.14,176.08,111.87]
[1753905607141,5.6787,176.1,176.08,111.87]
[1753905607337,3.03,176.09,176.05,3.01]
[1753905607634,3.03,176.09,176.06,108.86]
[1753905607840,3.03,176.09,176.07,3.01]
[1753905608037,6.63676915,176.13,176.05,111.87]
[1753905608240,8.7096,176.08,176.05,111.87]
[1753905608439,3.03,176.12,176.06,3.01]
[1753905609134,5.6786,176.11,176.07,3.01]
[1753905609334,6.63676915,176.17,176.06,6.63676915]
[1753905609635,5.6783,176.12,176.07,3.01]
[1753905609833,6.63676915,176.18,176.05,108.86]
[1753905610034,6.63676915,176.12,176.04,3.01]
[1753905610239,3.03,176.11,176.04,111.87]
[1753905610440,3.03,176.11,176.04,108.86]
[1753905610441,6.63676915,176.1,176.04,108.86]
[1753905610639,6.63676915,176.12,176.04,108.86]
[1753905610838,3.03,176.07,176.04,111.87]
[1753905611040,3.03,176.05,176.04,108.86]
[1753905611240,8.7099,176.07,176.04,108.86]
[1753905611435,3.03,176.06,176.04,108.86]
[1753905611845,3.03,176.06,176.04,111.87]
[1753905612142,3.03,176.05,176.04,108.86]
[1753905612746,3.03,176.08,176.01,6.63676915]
[1753905613042,6.63676915,176.08,175.98,381.58]
[1753905613244,5.6822,176.0,175.98,381.58]
[1753905613443,8.7122,176.0,175.98,490.44]
[1753905613746,8.7122,176.0,175.84,11.374]
[1753905613747,3.03,175.98,175.96,3.01]
[1753905614041,3.03,176.03,175.95,108.86]
[1753905614248,3.03,176.03,175.96,3.01]
[1753905614549,8.7117,176.01,175.99,3.01]
[1753905614950,5.6822,176.0,175.96,3.01]
[1753905615149,3.03,175.99,175.97,3.01]
[1753905615351,3.03,176.02,175.96,3.01]
[1753905615539,8.7117,176.01,175.98,3.01]
[1753905615745,3.03,176.01,175.99,3.01]
[1753905616451,3.03,176.04,176.01,3.01]
[1753905616843,3.03,176.03,176.01,3.01]
[1753905617048,3.03,176.02,176.0,108.88]
[1753905617241,3.03,176.08,176.01,9.64676915]
[1753905617442,3.03,176.08,176.02,3.01]
[1753905617848,3.03,176.07,176.04,3.01]
[1753905618045,6.63676915,176.11,176.0,108.88]
[1753905618251,9.66676915,176.08,176.0,108.88]
[1753905618450,3.03,176.07,176.0,108.88]
[1753905618647,3.03,176.09,176.01,3.01]
[1753905619251,3.03,176.09,176.0,118.52676915]
[1753905619647,6.63676915,176.1,176.01,3.01]
[1753905619648,5.6809,176.04,176.01,3.01]
[1753905619847,5.6809,176.04,176.02,3.01]
[1753905620053,8.711,176.03,176.0,118.52676915]
[1753905620455,3.03,176.03,176.01,3.01]
[1753905620951,3.03,176.09,176.0,108.88]
[1753905621155,3.03,176.07,176.0,108.88]
[1753905621357,3.03,176.07,176.0,115.51676915]
[1753905621560,3.03,176.07,176.01,3.01]
[1753905622356,3.03,176.07,175.98,9.64676915]
[1753905622549,3.03,176.07,175.98,111.97]
[1753905623154,3.03,176.07,175.98,108.96]
[1753905623356,3.03,176.07,175.98,111.97]
[1753905623957,8.7123,175.99,175.98,108.96]
[1753905624351,3.03,175.98,175.96,3.01]
[1753905624551,3.03,175.98,175.95,3.01]
[1753905624962,5.6835,175.96,175.94,108.9]
[1753905625259,6.63676915,176.04,175.94,108.9]
[1753905625452,3.03,176.03,175.94,108.9]
[1753905625758,5.6836,175.95,175.94,108.9]
[1753905625960,8.7136,175.95,175.94,108.9]
[1753905626155,11.3595,176.07,175.94,115.53676915]
[1753905626460,3.03,176.0,175.96,6.63676915]
[1753905626659,3.03,176.05,175.96,6.63676915]
[1753905627260,6.63676915,176.04,175.95,3.01]
[1753905627461,3.03,176.03,175.95,3.01]
[1753905628760,3.03,176.03,175.95,3.18]
[1753905628960,3.03,176.03,175.95,9.81676915]
[1753905629361,3.11,176.05,175.95,9.81676915]
[1753905629559,3.11,176.05,175.97,6.63676915]
[1753905629769,5.6813,176.03,175.97,6.63676915]
[1753905630060,3.11,176.02,176.0,3.18]
[1753905630657,3.11,176.07,176.02,3.18]
[1753905630859,6.63676915,176.16,176.05,6.63676915]
[1753905631164,3.11,176.15,176.07,6.63676915]
[1753905631362,3.11,176.15,176.07,9.81676915]
[1753905631756,3.11,176.15,176.07,6.63676915]
[1753905632054,3.11,176.15,176.06,109.14]
[1753905632055,3.11,176.17,176.13,6.63676915]
[1753905632262,3.11,176.17,176.14,3.18]
[1753905632456,8.7868,176.17,176.15,3.18]
[1753905632656,3.11,176.23,176.15,3.18]
[1753905632856,5.6765,176.18,176.15,3.18]
[1753905633057,5.6765,176.18,176.16,3.18]
[1753905633257,8.7865,176.18,176.16,3.18]
[1753905633459,3.11,176.23,176.15,6.63676915]
[1753905633757,3.11,176.23,176.12,115.83676915]
[1753905633960,5.6778,176.13,176.12,109.2]
[1753905634256,6.63676915,176.18,176.08,6.63676915]
[1753905634457,5.679,176.1,176.07,109.2]
[1753905634860,3.11,176.17,176.09,3.18]
[1753905635257,6.63676915,176.18,176.08,115.83676915]
[1753905635462,3.11,176.17,176.06,3.18]
[1753905635763,3.11,176.17,176.07,6.63676915]
[1753905636062,3.11,176.15,176.07,6.63676915]
[1753905636260,3.11,176.15,176.06,109.16]
[1753905636559,6.63676915,176.16,176.06,112.34]
[1753905636863,3.11,176.09,176.06,112.34]
[1753905637563,5.6793,176.09,176.08,3.18]
[1753905638960,5.6785,176.11,176.08,3.18]
[1753905639159,3.11,176.17,176.08,3.18]
[1753905639358,3.11,176.17,176.08,9.81676915]
[1753905639558,5.6786,176.11,176.08,9.81676915]
[1753905639854,5.6786,176.11,176.08,6.63676915]
[1753905640056,5.6786,176.11,176.1,3.18]
[1753905641158,5.6786,176.11,176.08,6.63676915]
[1753905641464,5.6786,176.11,176.09,3.18]
[1753905641665,5.6786,176.11,176.08,6.63676915]
[1753905641859,5.6786,176.11,176.1,3.18]
[1753905642566,3.11,176.13,176.05,3.18]
[1753905642865,3.11,176.13,176.05,112.08]
[1753905643256,3.11,176.09,176.05,108.9]
[1753905643463,3.11,176.08,176.06,3.18]
[1753905643860,6.63676915,176.14,176.06,3.18]
[1753905644063,11.37656087,176.21,176.11,3.18]
[1753905644260,3.11,176.12,176.1,6.63676915]
[1753905644459,3.11,176.11,176.1,6.63676915]
[1753905645065,3.11,176.11,176.07,6.63676915]
[1753905645265,3.11,176.1,176.08,3.18]
[1753905645559,3.11,176.1,176.07,6.63676915]
[1753905645767,3.11,176.09,176.07,3.18]
[1753905646263,3.11,176.1,176.07,3.18]
[1753905646464,3.11,176.12,176.07,3.18]
[1753905646866,3.11,176.12,176.06,6.63676915]
[1753905647164,8.7882,176.12,176.09,3.18]
[1753905647365,3.11,176.11,176.09,3.18]
[1753905648368,3.11,176.11,176.06,6.63676915]
[1753905648563,3.11,176.11,176.08,3.18]
[1753905648764,3.11,176.09,176.06,9.81676915]
[1753905648969,3.11,176.17,176.07,3.18]
[1753905649173,5.6784,176.12,176.07,3.18]
[1753905649365,5.6784,176.12,176.08,3.18]
[1753905649567,3.11,176.1,176.08,3.18]
[1753905650360,3.11,176.21,176.09,3.18]
[1753905650565,3.11,176.19,176.09,3.18]
[1753905650966,3.11,176.19,176.08,6.63676915]
[1753905651166,3.11,176.17,176.08,6.63676915]
[1753905651367,3.11,176.14,176.08,6.63676915]
[1753905651569,3.11,176.14,176.07,3.18]
[1753905651964,5.6784,176.12,176.07,3.18]
[1753905652162,3.11,176.11,176.08,3.18]
[1753905652469,3.11,176.11,176.06,6.63676915]
[1753905652470,8.7877,176.14,176.1,3.18]
[1753905652769,3.11,176.15,176.12,3.18]
[1753905653472,3.11,176.14,176.12,3.18]
[1753905654665,3.11,176.13,176.09,9.78676915]
[1753905654969,3.11,176.13,176.1,3.15]
[1753905655266,8.788,176.13,176.1,3.15]
[1753905655468,3.11,176.12,176.09,6.63676915]
[1753905655669,3.11,176.11,176.09,6.63676915]
[1753905655862,3.11,176.11,176.09,9.78676915]
[1753905656566,6.63676915,176.2,176.05,108.9]
[1753905656759,3.11,176.16,176.07,6.63676915]
[1753905656964,3.11,176.16,176.05,118.68676915]
[1753905657267,5.6793,176.09,176.05,118.68676915]
[1753905657468,3.11,176.16,176.04,108.86]
[1753905657661,3.11,176.14,176.04,108.86]
[1753905658066,3.11,176.14,176.05,6.63676915]
[1753905658265,3.11,176.14,176.06,3.15]
[1753905658666,3.11,176.14,176.0,384.95]
[1753905658863,3.11,176.14,176.04,3.13]
[1753905659271,3.03,176.14,176.05,3.13]
[1753905659875,3.03,176.06,176.03,9.76676915]
[1753905660075,3.03,176.05,176.03,9.76676915]
[1753905660473,3.03,176.12,176.03,6.63676915]
[1753905660670,3.03,176.12,176.1,3.13]
[1753905660868,3.03,176.12,176.09,6.63676915]
[1753905660869,3.03,176.14,176.11,3.13]
[1753905661064,3.03,176.18,176.09,6.63676915]
[1753905661570,3.03,176.18,176.08,108.86]
[1753905661777,6.63676915,176.19,176.08,108.86]
[1753905661973,3.03,176.18,176.08,111.99]
[1753905662375,3.03,176.18,176.1,3.13]
[1753905662577,3.03,176.18,176.12,9.76676915]
[1753905662973,3.03,176.2,176.12,6.63676915]
[1753905663674,3.03,176.2,176.1,3.13]
[1753905663877,3.03,176.17,176.08,3.13]
[1753905664076,11.3514,176.2,176.05,3.13]
[1753905664077,3.03,176.08,176.05,3.13]
[1753905664278,3.03,176.07,176.05,3.13]
[1753905665176,3.03,176.06,176.04,115.49676915]
[1753905665376,3.03,176.06,176.04,108.86]
[1753905665578,3.03,176.11,176.04,108.86]
[1753905666076,3.03,176.08,176.05,3.13]
[1753905666277,4.73979172,176.21,176.06,6.63676915]
[1753905666482,6.63676915,176.14,176.04,118.62676915]
[1753905666683,3.03,176.06,176.04,118.62676915]
[1753905666880,6.63676915,176.14,176.04,115.49676915]
[1753905667177,3.03,176.13,176.05,3.13]
[1753905667573,5.6786,176.11,176.06,5.6801]
[1753905667780,3.03,176.11,176.07,6.63676915]
[1753905668079,3.03,176.11,176.09,3.13]
[1753905668283,5.6787,176.11,176.07,6.63676915]
[1753905668483,3.03,176.1,176.07,9.76676915]
[1753905668779,8.7088,176.1,176.07,9.76676915]
[1753905668985,3.03,176.1,176.07,9.76676915]
[1753905669575,3.03,176.1,176.08,3.13]
[1753905669979,3.03,176.14,176.07,6.63676915]
[1753905670276,3.03,176.14,176.08,3.13]
[1753905670677,8.7076,176.14,176.08,8.8092]
[1753905670977,8.7076,176.14,176.08,3.13]
[1753905671179,8.7076,176.14,176.08,8.8092]
[1753905671482,3.03,176.13,176.1,3.13]
[1753905673280,3.03,176.12,176.1,3.13]
[1753905676386,3.03,176.13,176.11,3.13]
[1753905677276,3.03,176.19,176.12,3.13]
[1753905677482,4.34510369,176.18,176.13,6.63676915]
[1753905677681,3.03,176.22,176.13,9.76676915]
[1753905677990,3.03,176.15,176.13,9.76676915]
[1753905679082,3.03,176.17,176.14,3.13]
[1753905679285,3.03,176.16,176.14,3.13]
[1753905679675,3.03,176.19,176.13,6.63676915]
[1753905679880,4.73979172,176.25,176.18,3.13]
[1753905680079,3.03,176.23,176.17,6.63676915]
[1753905680279,4.34430123,176.24,176.17,6.63676915]
[1753905680280,3.03,176.21,176.19,9.76676915]
[1753905680877,3.03,176.28,176.19,9.76676915]
[1753905681077,3.03,176.26,176.21,6.63676915]
[1753905681284,3.03,176.24,176.21,9.76676915]
[1753905681687,5.6745,176.24,176.21,9.76676915]
[1753905681888,3.03,176.23,176.18,115.45676915]
[1753905682286,3.03,176.28,176.18,115.45676915]
[1753905682588,3.03,176.26,176.16,6.63676915]
[1753905682789,4.33538131,176.25,176.16,6.63676915]
[1753905682986,6.63676915,176.25,176.16,6.63676915]
[1753905683192,3.03,176.24,176.16,6.63676915]
[1753905683388,3.03,176.24,176.17,3.13]
[1753905683586,16.08369172,176.32,176.15,108.82]
[1753905683587,3.03,176.29,176.2,9.76676915]
[1753905683782,3.03,176.27,176.2,9.76676915]
[1753905683988,3.03,176.24,176.21,3.13]
[1753905684694,3.03,176.24,176.22,9.76676915]
[1753905685189,3.03,176.29,176.2,6.63676915]
[1753905685390,4.32779768,176.28,176.2,6.63676915]
[1753905685596,5.6742,176.25,176.2,6.63676915]
[1753905685894,3.03,176.27,176.2,6.63676915]
[1753905686196,3.03,176.24,176.21,3.13]
[1753905686393,3.03,176.23,176.21,3.13]
[1753905687195,3.03,176.29,176.18,9.76676915]
[1753905687487,3.03,176.25,176.16,6.63676915]
[1753905687893,6.63676915,176.24,176.15,3.13]
[1753905688087,3.03,176.23,176.15,111.91]
[1753905689296,3.21,176.18,176.15,111.91]
[1753905689886,3.21,176.18,176.16,3.16]
[1753905690296,5.676,176.19,176.15,108.78]
[1753905690498,3.21,176.17,176.15,3.16]
[1753905690891,5.676,176.19,176.15,3.16]
[1753905691094,3.21,176.18,176.15,3.16]
[1753905691997,3.21,176.17,176.15,3.16]
[1753905692595,3.21,176.18,176.16,3.16]
[1753905693902,11.3459,176.29,176.16,3.16]
[1753905693903,3.21,176.24,176.16,9.79676915]
[1753905694105,3.21,176.24,176.18,9.79676915]
[1753905694494,5.6753,176.21,176.18,9.79676915]
[1753905694699,3.21,176.2,176.18,9.79676915]
[1753905696005,3.21,176.2,176.18,12.31296915]
[1753905696199,6.63676915,176.28,176.19,3.16]
[1753905696200,3.21,176.27,176.19,3.16]
[1753905696406,3.21,176.27,176.2,115.39676915]
[1753905696894,3.21,176.24,176.21,3.16]
[1753905697098,3.21,176.23,176.21,3.16]
[1753905698102,6.63676915,176.3,176.21,3.16]
[1753905698303,3.21,176.27,176.21,3.16]
[1753905698799,3.21,176.24,176.22,3.16]
[1753905699209,3.21,176.23,176.22,3.16]
[1753905699410,6.63676915,176.28,176.2,108.76]
[1753905699616,3.21,176.27,176.2,108.76]
[1753905700112,3.21,176.23,176.21,3.16]
[1753905701210,3.21,176.22,176.2,118.55676915]
[1753905701518,3.21,176.22,176.21,3.16]
[1753905702013,3.21,176.22,176.2,115.39676915]
[1753905702319,3.21,176.22,176.2,118.55676915]
[1753905703418,3.21,176.21,176.13,3.16]
[1753905703614,3.21,176.21,176.15,9.79676915]
[1753905703812,3.21,176.21,176.14,108.72]
[1753905704009,5.6772,176.15,176.14,108.72]
[1753905704211,8.8872,176.15,176.14,108.72]
[1753905704405,5.6772,176.15,176.12,381.6]
[1753905704615,3.21,176.13,176.12,490.3]
[1753905704818,3.21,176.17,176.13,3.16]
[1753905705013,3.21,176.23,176.15,3.16]
[1753905705213,3.21,176.23,176.16,124.17336915]
[1753905705409,3.21,176.23,176.16,118.49676915]
[1753905705911,3.21,176.2,176.17,3.16]
[1753905706315,3.21,176.2,176.17,5.6765]
[1753905706615,3.21,176.2,176.18,3.16]
[1753905706816,6.63676915,176.28,176.17,3.16]
[1753905707013,3.21,176.27,176.17,3.16]
[1753905707212,5.6743,176.24,176.17,3.16]
[1753905707512,3.21,176.23,176.19,3.16]
[1753905707713,3.21,176.22,176.2,108.7]
[1753905707907,3.21,176.3,176.21,6.63676915]
[1753905708112,3.21,176.3,176.22,3.16]
[1753905708517,3.21,176.26,176.23,3.16]
[1753905708817,3.21,176.26,176.24,108.7]
[1753905709905,3.21,176.25,176.24,108.7]
[1753905711118,8.8835,176.27,176.25,3.16]
[1753905711320,3.21,176.27,176.25,3.16]
[1753905711616,3.21,176.26,176.24,111.86]
[1753905714721,3.21,176.25,176.24,111.86]
[1753905715316,3.21,176.25,176.24,108.7]
[1753905715722,9.84676915,176.34,176.24,108.7]
[1753905716022,9.84676915,176.34,176.24,115.33676915]
[1753905716023,3.21,176.32,176.24,115.33676915]
[1753905717021,5.6735,176.27,176.24,115.33676915]
[1753905717522,3.21,176.26,176.24,118.49676915]
[1753905717821,3.21,176.26,176.25,3.16]
[1753905718218,3.21,176.31,176.25,3.16]
[1753905718423,3.21,176.31,176.26,9.79676915]
[1753905719027,3.18,176.27,176.25,108.64]
[1753905719216,3.18,176.26,176.25,108.64]
[1753905719923,8.8528,176.29,176.26,3.17]
[1753905720117,3.18,176.29,176.27,3.17]
[1753905720327,3.18,176.34,176.25,118.44676915]
[1753905720523,3.18,176.32,176.25,108.64]
[1753905720827,3.18,176.32,176.25,111.81]
[1753905722025,5.6729,176.29,176.25,117.4839]
[1753905722328,3.18,176.28,176.26,3.16]
[1753905722517,3.18,176.28,176.25,108.64]
[1753905722518,8.853,176.28,176.25,108.64]
[1753905722720,201.60554672,176.35,176.25,111.8]
[1753905722916,4.31700841,176.34,176.25,111.8]
[1753905723123,3.18,176.32,176.26,3.16]
[1753905723420,3.18,176.34,176.27,3.16]
[1753905723721,6.63676915,176.4,176.29,9.79676915]
[1753905723929,3.18,176.33,176.31,3.16]
[1753905725422,3.18,176.39,176.32,3.16]
[1753905725623,3.18,176.41,176.34,3.16]
[1753905725823,4.31350293,176.4,176.34,3.16]
[1753905726128,8.8502,176.37,176.35,3.16]
[1753905726326,3.18,176.37,176.35,3.16]
[1753905726519,3.18,176.36,176.33,7.21302193]
[1753905726822,9.78054164,176.45,176.35,15.43134164]
[1753905727029,5.6694,176.4,176.35,15.43134164]
[1753905727227,3.18,176.39,176.36,3.16]
[1753905727428,3.18,176.39,176.37,3.16]
[1753905727631,3.18,176.47,176.39,3.16]
[1753905727828,3.18,176.45,176.39,9.76054164]
[1753905728228,2.27402618,176.48,176.4,111.72]
[1753905728524,2.27402618,176.48,176.45,12.26784164]
[1753905728729,2.27402618,176.48,176.47,9.76054164]
[1753905728926,6.60054164,176.6,176.47,9.76054164]
[1753905729233,1060.73155769,176.66,176.49,3.16]
[1753905729234,3.18,176.58,176.49,3.16]
[1753905729433,3.18,176.58,176.5,6.60054164]
[1753905729626,5.6641,176.56,176.5,12.26644164]
[1753905729829,3.18,176.54,176.51,3.16]
[1753905730022,3.18,176.53,176.51,3.16]
[1753905731232,6.60054164,176.63,176.52,9.76054164]
[1753905731431,3.18,176.61,176.52,9.76054164]
[1753905731631,3.18,176.61,176.51,108.52]
[1753905731632,3.18,176.61,176.54,6.60054164]
[1753905732028,3.18,176.58,176.55,3.16]
[1753905732336,3.18,176.59,176.56,3.16]
[1753905732523,8.8436,176.58,176.56,3.16]
[1753905732725,3.18,176.58,176.56,3.16]
[1753905732927,5.6633,176.59,176.56,9.76054164]
[1753905733235,8.8433,176.59,176.56,9.76054164]
[1753905733428,3.18,176.59,176.56,6.60054164]
[1753905733730,3.18,176.59,176.56,9.76054164]
[1753905734128,3.18,176.58,176.56,9.76054164]
[1753905735332,3.18,176.57,176.54,9.76054164]
[1753905735527,3.18,176.63,176.54,9.76054164]
[1753905735732,5.6638,176.57,176.54,9.76054164]
[1753905735931,3.18,176.57,176.53,6.60054164]
[1753905736138,3.18,176.61,176.53,6.60054164]
[1753905736330,3.18,176.58,176.54,3.16]
[1753905736532,3.18,176.57,176.55,3.16]
[1753905736835,5.664,176.56,176.55,3.16]
[1753905737033,5.664,176.56,176.53,6.60054164]
[1753905737034,8.844,176.56,176.54,3.16]
[1753905738130,5.664,176.56,176.55,3.16]
[1753905738838,8.8437,176.57,176.55,3.16]
[1753905739035,3.18,176.57,176.55,3.16]
[1753905739234,6.60054164,176.64,176.56,3.16]
[1753905739439,3.18,176.63,176.56,3.16]
[1753905740148,3.18,176.57,176.56,3.16]
[1753905740529,3.18,176.57,176.53,6.60054164]
[1753905740841,3.18,176.62,176.53,6.60054164]
[1753905741033,467.17769028,176.66,176.47,3.16]
[1753905741034,3.18,176.54,176.47,3.16]
[1753905741239,3.18,176.54,176.48,6.60054164]
[1753905741633,6.60054164,176.58,176.51,3.16]
[1753905741830,3.18,176.57,176.49,3.16]
[1753905742031,5.6655,176.52,176.49,3.16]
[1753905742338,3.18,176.51,176.49,3.16]
[1753905743439,6.60054164,176.53,176.43,3.16]
[1753905743747,6.60054164,176.53,176.33,6.60054164]
[1753905743748,3.18,176.5,176.41,118.12054164]
[1753905743934,3.18,176.47,176.43,3.16]
[1753905744138,3.18,176.47,176.41,114.96054164]
[1753905744340,3.18,176.47,176.45,3.16]
[1753905745341,3.18,176.52,176.46,3.16]
[1753905745642,5.6657,176.51,176.45,12.26804164]
[1753905745841,3.18,176.5,176.45,12.26804164]
[1753905746146,3.18,176.5,176.48,3.16]
[1753905746542,3.18,176.49,176.46,3.16]
[1753905747634,3.18,176.49,176.47,3.16]
[1753905747836,3.18,176.48,176.45,3.16]
[1753905748136,6.60054164,176.55,176.45,5.6675]
[1753905748335,5.6662,176.5,176.47,3.16]
[1753905748548,3.18,176.49,176.47,3.16]
[1753905750344,3.18,176.49,176.48,3.14]
[1753905750745,3.16,176.54,176.48,3.14]
[1753905751350,3.16,176.5,176.48,3.14]
[1753905751841,3.16,176.5,176.46,6.60054164]
[1753905751842,6.60054164,176.55,176.46,3.14]
[1753905752037,6.60054164,176.53,176.44,9.74054164]
[1753905752238,3.16,176.52,176.44,9.74054164]
[1753905752640,3.16,176.52,176.45,3.14]
[1753905752838,3.16,176.52,176.46,3.14]
[1753905753047,3.16,176.52,176.47,3.14]
[1753905753252,3.16,176.56,176.49,3.14]
[1753905753848,6.60054164,176.57,176.48,6.60054164]
[1753905754051,6.60054164,176.6,176.49,3.14]
[1753905754256,3.16,176.57,176.49,3.14]
[1753905754849,3.16,176.57,176.51,6.60054164]
[1753905755251,3.16,176.57,176.53,3.14]
[1753905755661,3.16,176.56,176.51,6.60054164]
[1753905755848,3.16,176.56,176.52,3.14]
[1753905756458,3.16,176.56,176.53,3.14]
[1753905756645,3.16,176.56,176.54,3.14]
[1753905757154,3.16,176.61,176.54,3.14]
[1753905757453,5.6639,176.57,176.54,3.14]
[1753905757757,6.60054164,176.55,176.46,3.14]
[1753905758051,5.6665,176.49,176.46,3.14]
[1753905758250,3.16,176.54,176.45,3.14]
[1753905758450,3.16,176.58,176.48,9.74054164]
[1753905758658,3.16,176.56,176.46,6.60054164]
[1753905758949,3.16,176.53,176.45,3.14]
[1753905759348,3.16,176.5,176.47,3.14]
[1753905759544,3.16,176.49,176.47,3.14]
[1753905760048,3.16,176.57,176.48,3.14]
[1753905760847,6.33852296,176.64,176.48,3.14]
[1753905760848,0.98591948,176.65,176.48,3.14]
[1753905761053,7.89979172,176.72,176.56,3.14]
[1753905761246,4.2538481,176.71,176.67,6.60054164]
[1753905761448,3.16,176.76,176.68,3.14]
[1753905761661,3.16,176.74,176.67,6.60054164]
[1753905761850,3.16,176.72,176.69,6.60054164]
[1753905762056,3.16,176.7,176.69,6.60054164]
[1753905762258,3.16,176.7,176.66,6.60054164]
[1753905762456,3.16,176.68,176.66,6.60054164]
[1753905763258,3.16,176.68,176.64,6.60054164]
[1753905763758,11.34033336,176.77,176.66,6.60054164]
[1753905763954,3.16,176.67,176.66,6.60054164]
[1753905764262,3.16,176.68,176.65,3.14]
[1753905764456,3.16,176.68,176.55,23.64054164]
[1753905764457,3.16,176.75,176.68,3.14]
[1753905764655,4.25835261,176.74,176.71,6.60054164]
[1753905764855,12.05190273,176.79,176.74,3.14]
[1753905765055,4.25736782,176.78,176.75,6.60054164]
[1753905765263,1.09736782,176.77,176.7,108.24]
[1753905765557,4.15211101,176.79,176.76,6.60054164]
[1753905765764,4.15211101,176.79,176.7,108.24]
[1753905765952,4.15211101,176.79,176.76,6.60054164]
[1753905766153,4.73979172,176.81,176.78,6.60054164]
[1753905766355,4.69252262,176.84,176.79,108.2]
[1753905766553,9.49852296,176.89,176.83,6.60054164]